fUSD/lending_fUSD_20260414
["ID","MTS","AMOUNT","RATE_DAILY","PERIOD"]
[420478409,1776137890560,-179.55883432,9.264e-05,2]
[420478410,1776137899362,-4135.10673576,9.264e-05,2]
[420478411,1776137899544,-10000.01,9.264e-05,2]
[420478412,1776137899701,-10000.01,9.264e-05,2]
[420478413,1776137899815,-10000.01,9.264e-05,2]
[420478414,1776137902081,-10000.01,9.264e-05,2]
[420478415,1776137902154,-10000.01,9.264e-05,2]
[420478416,1776137902866,-10000.01,9.264e-05,2]
[420478417,1776137902891,-10000.01,9.264e-05,2]
[420478418,1776137902910,-10000.01,9.264e-05,2]
[420478419,1776137908269,-10000.01,9.264e-05,2]
[420478420,1776137908592,-10000.01,9.264e-05,2]
[420478421,1776137908702,-10000.01,9.264e-05,2]
[420478422,1776137908900,-10000.01,9.264e-05,2]
[420478423,1776137909059,-10000.01,9.264e-05,2]
[420478424,1776137911199,-10000.01,9.264e-05,2]
[420478425,1776137911333,-10000.01,9.264e-05,2]
[420478426,1776137911450,-10000.01,9.264e-05,2]
[420478427,1776137911542,-10000.01,9.264e-05,2]
[420478428,1776137917263,-10000.01,9.264e-05,2]
[420478429,1776137917418,-10000.01,9.264e-05,2]
[420478430,1776137917531,-10000.01,9.264e-05,2]
[420478431,1776137917655,-10000.01,9.264e-05,2]
[420478432,1776137917774,-10000.01,9.264e-05,2]
[420478433,1776137939627,150.0,0.000164,120]
[420478434,1776138077342,514.966,8e-05,2]
[420478435,1776138132637,150.0,0.000164,120]
[420478436,1776138144446,-616.4,8.675e-05,2]
[420478437,1776138159655,-3617.90990963,9e-05,2]
[420478438,1776138159690,-150.0,9e-05,2]
[420478439,1776138159731,-279.0,9e-05,2]
[420478440,1776138174971,-300.0,9.162e-05,2]
[420478441,1776138190176,-1200.0,9.163e-05,2]
[420478442,1776138190221,-1200.0,9.163e-05,2]
[420478443,1776138190263,-150.0,9.163e-05,2]
[420478444,1776138190307,-300.0,9.163e-05,2]
[420478445,1776138241212,300.0,9.163e-05,2]
[420478446,1776138266559,-723.35375215,9.164e-05,2]
[420478447,1776138266780,-1446.7075043,9.164e-05,2]
[420478448,1776138266986,-2106.5949914,9.164e-05,2]
[420478449,1776138267045,-235.378,9.164e-05,2]
[420478450,1776138267162,-1499.955,9.164e-05,2]
[420478451,1776138267409,-2000.1,9.164e-05,2]
[420478452,1776138269896,-3739.13617452,9.164e-05,2]
[420478453,1776138269982,-5000.01,9.164e-05,2]
[420478454,1776138270087,-5000.01,9.164e-05,2]
[420478455,1776138270275,-5000.01,9.164e-05,2]
[420478456,1776138270483,-5000.01,9.164e-05,2]
[420478457,1776138270601,-5000.01,9.164e-05,2]
[420478458,1776138272435,-5000.01,9.164e-05,2]
[420478459,1776138272587,-473.22527452,9.164e-05,2]
[420478460,1776138272620,-4053.55945096,9.164e-05,2]
[420478461,1776138272700,-2500.0,9.164e-05,2]
[420478462,1776138272779,-0.01,9.164e-05,2]
[420478463,1776138272895,-1303.43754542,9.164e-05,2]
[420478464,1776138272938,-500.0,9.243e-05,2]
[420478465,1776138272978,-500.0,9.243e-05,2]
[420478466,1776138273185,-500.0,9.243e-05,2]
[420478467,1776138273236,-500.0,9.243e-05,2]
[420478468,1776138273279,-500.0,9.243e-05,2]
[420478469,1776138273321,-160.0128224,9.243e-05,2]
[420478470,1776138273361,-500.1303098,9.243e-05,2]
[420478471,1776138273418,-179.7237356,9.243e-05,2]
[420478472,1776138273535,-320.2762644,9.243e-05,2]
[420478473,1776138273581,-500.0,9.243e-05,2]
[420478474,1776138273636,-500.0,9.243e-05,2]
[420478475,1776138273675,-500.25057568,9.243e-05,2]
[420478476,1776138273712,-500.0,9.243e-05,2]
[420478477,1776138273803,-610.3510203,9.243e-05,2]
[420478478,1776138273837,-363.28,9.243e-05,2]
[420478479,1776138273887,-204.23342,9.261e-05,2]
[420478480,1776138273931,-154.8861934,9.261e-05,2]
[420478481,1776138273967,-204.23342,9.263e-05,2]
[420478482,1776138274008,-233.8339791,9.263e-05,2]
[420478483,1776138274054,-500.0,9.263e-05,2]
[420478484,1776138274244,-500.0,9.263e-05,2]
[420478485,1776138274319,-500.0,9.263e-05,2]
[420478486,1776138274416,-301.54623754,9.263e-05,2]
[420478487,1776138274478,-500.0,9.263e-05,2]
[420478488,1776138274516,-500.0,9.263e-05,2]
[420478489,1776138274707,-500.0,9.263e-05,2]
[420478490,1776138274740,-204.23342,9.264e-05,2]
[420478491,1776138274773,-500.0,9.264e-05,2]
[420478492,1776138275725,-388.7201725,9.264e-05,2]
[420478493,1776138277182,-396.91752492,9.264e-05,2]
[420478494,1776138277241,-500.0,9.264e-05,2]
[420478495,1776138277257,-204.23342,9.264e-05,2]
[420478496,1776138277278,-500.0,9.264e-05,2]
[420478497,1776138277293,-2591.54316,9.264e-05,2]
[420478498,1776138277317,-5000.01,9.264e-05,2]
[420478499,1776138277800,-5000.01,9.264e-05,2]
[420478500,1776138277829,-5000.01,9.264e-05,2]
[420478501,1776138277852,-5000.01,9.264e-05,2]
[420478502,1776138277876,-5000.01,9.264e-05,2]
[420478503,1776138277896,-5000.01,9.264e-05,2]
[420478504,1776138277920,-5000.01,9.264e-05,2]
[420478505,1776138282690,-9700.01,9.264e-05,2]
[420478506,1776138282776,-10000.01,9.264e-05,2]
[420478507,1776138282901,-10000.01,9.264e-05,2]
[420478508,1776138283173,-10000.01,9.264e-05,2]
[420478509,1776138283282,-10000.01,9.264e-05,2]
[420478510,1776138283473,-10000.01,9.264e-05,2]
[420478511,1776138283592,-10000.01,9.264e-05,2]
[420478512,1776138283768,-10000.01,9.264e-05,2]
[420478513,1776138283885,-10000.01,9.264e-05,2]
[420478514,1776138284038,-10000.01,9.264e-05,2]
[420478515,1776138295045,-5000.01,9.264e-05,2]
[420478516,1776138305887,-1200.0,9.263e-05,2]
[420478517,1776138305918,-150.0,9.263e-05,2]
[420478518,1776138305950,-288.59970822,9.264e-05,2]
[420478519,1776138305991,-187.83076797,9.264e-05,2]
[420478520,1776138306193,-1347.14904762,9.264e-05,2]
[420478521,1776138323685,150.0,0.000164,120]
[420478522,1776138385796,169.18,7.138e-05,2]
[420478552,1776138422843,300.0,8.9e-05,3]
[420478553,1776138426354,2500.0,9.164e-05,2]
[420478554,1776138508853,150.0,0.000164,120]
[420478555,1776138591972,-1020.47,8.896e-05,2]
[420478560,1776138631863,-600.0,9e-05,3]
[420478561,1776138631872,-231.32873108,9e-05,2]
[420478562,1776138631892,-39.84444437,9.033e-05,2]
[420478564,1776138631904,-125.56555563,9.033e-05,2]
[420478566,1776138631914,-250.0,9.132e-05,2]
[420478567,1776138631932,-1260.73683387,9.164e-05,2]
[420478568,1776138631945,-689.16136204,9.164e-05,2]
[420478569,1776138631974,-550.10180409,9.164e-05,2]
[420478570,1776138631987,-853.75558463,9.262e-05,2]
[420478572,1776138632003,-346.24441537,9.262e-05,2]
[420478574,1776138632030,-283.38014593,9.263e-05,2]
[420478576,1776138632042,-193.77743014,9.263e-05,2]
[420478578,1776138632100,-327.25165783,9.263e-05,2]
[420478579,1776138632116,-150.0,9.263e-05,2]
[420478580,1776138632126,-500.0,9.263e-05,2]
[420478581,1776138632144,-500.0,9.263e-05,2]
[420478582,1776138632161,-311.19469321,9.263e-05,2]
[420478583,1776138632174,-352.71523678,9.263e-05,2]
[420478584,1776138632198,-317.51488921,9.263e-05,2]
[420478585,1776138632212,-182.48511079,9.263e-05,2]
[420478586,1776138632231,-197.1697632,9.263e-05,2]
[420478587,1776138632249,-275.07413173,9.263e-05,2]
[420478588,1776138632259,-45.27099428,9.264e-05,3]
[420478589,1776138632306,-110.72900572,9.264e-05,3]
[420478590,1776138632315,-629.10341609,9.264e-05,3]
[420478591,1776138632332,-422.89658391,9.264e-05,3]
[420478592,1776138632343,-151.0,9.264e-05,3]
[420478593,1776138632357,-164.0,9.264e-05,3]
[420478594,1776138632366,-277.26341609,9.264e-05,2]
[420478595,1776138632379,-5218.79958262,9.264e-05,2]
[420478596,1776138632398,-2726.52883703,9.264e-05,2]
[420478597,1776138632418,-292.91733824,9.264e-05,2]
[420478598,1776138632435,-547.9888,9.264e-05,2]
[420478599,1776138632474,-373790.48695998,9.264e-05,2]
[420478600,1776138632487,-39261.28676165,9.264e-05,2]
[420478601,1776138632511,-27429.55165475,9.264e-05,2]
[420478602,1776138632535,-344.21686775,9.264e-05,2]
[420478603,1776138632559,-530.57794545,9.264e-05,2]
[420478604,1776138637880,-421.5,9.264e-05,2]
[420478605,1776138637895,-3867.50590629,9.264e-05,2]
[420478606,1776138637907,-1492.8292,9.264e-05,2]
[420478607,1776138637930,-4131.57449147,9.264e-05,2]
[420478608,1776138637942,-650.24869359,9.264e-05,2]
[420478609,1776138637997,-884.4148894,9.264e-05,2]
[420478610,1776138638132,-40370.29201201,9.264e-05,2]
[420478618,1776138640326,-2482.62303403,9.264e-05,2]
[420478619,1776138640361,-905.0609247,9.264e-05,2]
[420478620,1776138640398,-525.6490831,9.264e-05,2]
[420478621,1776138640506,-34350.95861999,9.264e-05,2]
[420478622,1776138640529,-2943.95635846,9.264e-05,2]
[420478623,1776138640543,-5239.89376426,9.264e-05,2]
[420478624,1776138640579,-42874.04108691,9.264e-05,2]
[420478641,1776138643355,-343.10411232,9.264e-05,2]
[420478642,1776138643458,-522.62702627,9.264e-05,2]
[420478643,1776138643535,-2198.14611638,9.264e-05,2]
[420478646,1776138645686,-289.53899997,9.264e-05,2]
[420478648,1776138645712,-159948.18166238,9.264e-05,2]
[420478651,1776138645800,-1820.61781022,9.264e-05,2]
[420478652,1776138645881,-1176.41466757,9.264e-05,2]
[420478653,1776138645895,-625.54012998,9.264e-05,2]
[420478727,1776138695191,150.0,0.000164,120]
[420478728,1776138695618,10000.01,9.164e-05,2]
[420478729,1776138702172,-4976.59,8.966e-05,2]
[420478733,1776138857657,2959.07,8.691e-05,2]
[420478734,1776138857682,2764.19,8.691e-05,2]
[420478735,1776138865696,1852.42,8.591e-05,2]
[420478736,1776138881507,197.03,0.000164,120]
[420478737,1776138902693,211.2,8.6e-05,2]
[420478739,1776138949584,161.86,8.966e-05,2]
[420478740,1776138977742,-1000.0,9.162e-05,2]
[420478741,1776138983381,-200.0,9.162e-05,2]
[420478742,1776138983407,-300.0,9.162e-05,2]
[420478743,1776138983434,-150.0,9.163e-05,2]
[420478744,1776138983464,-300.0,9.163e-05,2]
[420478745,1776138983488,-50.0,9.163e-05,2]
[420478746,1776138983549,-224.7421069,9.163e-05,2]
[420478747,1776138983576,-363.28,9.163e-05,2]
[420478748,1776138983602,-411.9778931,9.163e-05,2]
[420478749,1776138983654,-88.0221069,9.163e-05,2]
[420478750,1776138983680,-500.0,9.163e-05,2]
[420478751,1776138983713,-191.6671179,9.163e-05,2]
[420478752,1776138983762,-220.3107752,9.163e-05,2]
[420478753,1776138983893,-279.6892248,9.163e-05,2]
[420478754,1776138983954,-500.0,9.163e-05,2]
[420478755,1776138984008,-220.3107752,9.163e-05,2]
[420478756,1776138984060,-279.6892248,9.163e-05,2]
[420478757,1776138984087,-500.0,9.163e-05,2]
[420478758,1776138984124,-220.3107752,9.163e-05,2]
[420478759,1776138984291,-279.6892248,9.163e-05,2]
[420478760,1776138984338,-383.14048744,9.163e-05,2]
[420478761,1776138984457,-337.17028776,9.163e-05,2]
[420478762,1776138984660,-162.82971224,9.163e-05,2]
[420478763,1776138984707,-500.0,9.163e-05,2]
[420478764,1776138984758,-337.17028776,9.163e-05,2]
[420478765,1776138984988,-162.82971224,9.163e-05,2]
[420478766,1776138985032,-500.0,9.163e-05,2]
[420478767,1776138985086,-337.17028776,9.163e-05,2]
[420478768,1776138985640,-162.82971224,9.163e-05,2]
[420478769,1776138985674,-500.0,9.163e-05,2]
[420478770,1776138985710,-337.17028776,9.163e-05,2]
[420478771,1776138985941,-162.82971224,9.163e-05,2]
[420478772,1776138985981,-500.0,9.163e-05,2]
[420478773,1776138986011,-337.17028776,9.163e-05,2]
[420478774,1776138986324,-162.82971224,9.163e-05,2]
[420478775,1776138986357,-196.33933474,9.163e-05,2]
[420478776,1776138986447,-500.0,9.163e-05,2]
[420478777,1776138986482,-140.83095302,9.163e-05,2]
[420478778,1776138986897,-433.35052257,9.163e-05,2]
[420478779,1776138986931,-500.0,9.163e-05,2]
[420478780,1776138986964,-66.64947743,9.163e-05,2]
[420478781,1776138987062,-131.73093048,9.163e-05,2]
[420478782,1776138987096,-274.74210689,9.164e-05,2]
[420478783,1776138987158,-274.74210689,9.164e-05,2]
[420478784,1776138987192,-318.78485574,9.164e-05,2]
[420478785,1776138987424,-1000.0,9.164e-05,2]
[420478786,1776138987792,-1000.0,9.164e-05,2]
[420478787,1776138988163,-1000.0,9.164e-05,2]
[420478788,1776138988464,-1000.0,9.164e-05,2]
[420478789,1776138988816,-1000.0,9.164e-05,2]
[420478790,1776138989564,-1000.0,9.164e-05,2]
[420478791,1776138989787,-1000.0,9.164e-05,2]
[420478792,1776138990083,-1000.0,9.164e-05,2]
[420478793,1776138990519,-1000.0,9.164e-05,2]
[420478794,1776138990731,-1000.0,9.164e-05,2]
[420478795,1776138991068,-1000.0,9.164e-05,2]
[420478796,1776138991450,-1000.0,9.164e-05,2]
[420478797,1776138991733,-1000.0,9.164e-05,2]
[420478798,1776138992065,-1000.0,9.164e-05,2]
[420478799,1776138992479,-1000.0,9.164e-05,2]
[420478800,1776138992730,-1000.0,9.164e-05,2]
[420478801,1776138993106,-1000.0,9.164e-05,2]
[420478802,1776138994960,-1000.0,9.164e-05,2]
[420478803,1776138995273,-1000.0,9.164e-05,2]
[420478804,1776138995466,-1000.0,9.164e-05,2]
[420478805,1776138995532,-1000.0,9.164e-05,2]
[420478806,1776138995674,-1000.0,9.164e-05,2]
[420478807,1776138995750,-1000.0,9.164e-05,2]
[420478808,1776138995864,-1000.0,9.164e-05,2]
[420478809,1776138995944,-1000.0,9.164e-05,2]
[420478810,1776138996151,-1000.0,9.164e-05,2]
[420478811,1776138996508,-1000.0,9.164e-05,2]
[420478812,1776138996887,-1000.0,9.164e-05,2]
[420478813,1776138997217,-1000.0,9.164e-05,2]
[420478814,1776138997588,-1000.0,9.164e-05,2]
[420478815,1776138998042,-1000.0,9.164e-05,2]
[420478816,1776138998131,4626.95,8.635e-05,2]
[420478817,1776138998165,3229.4,8.635e-05,2]
[420478818,1776138998280,-1000.0,9.164e-05,2]
[420478819,1776138998625,-1000.0,9.164e-05,2]
[420478820,1776138998951,-1000.0,9.164e-05,2]
[420478821,1776139000526,-1000.0,9.164e-05,2]
[420478822,1776139002788,-1000.0,9.164e-05,2]
[420478823,1776139021481,-300.0,9.163e-05,2]
[420478824,1776139021515,-700.0,9.164e-05,2]
[420478825,1776139022516,-150.0,9.163e-05,2]
[420478826,1776139022547,-850.0,9.164e-05,2]
[420478827,1776139022883,-1000.0,9.164e-05,2]
[420478828,1776139023254,-1000.0,9.164e-05,2]
[420478829,1776139023718,-1000.0,9.164e-05,2]
[420478830,1776139024515,-1000.0,9.164e-05,2]
[420478831,1776139025302,-1000.0,9.164e-05,2]
[420478832,1776139025470,-1000.0,9.164e-05,2]
[420478833,1776139025539,-1000.0,9.164e-05,2]
[420478834,1776139025654,-1000.0,9.164e-05,2]
[420478835,1776139025782,-1000.0,9.164e-05,2]
[420478836,1776139026147,-1000.0,9.164e-05,2]
[420478837,1776139026637,-1000.0,9.164e-05,2]
[420478838,1776139027172,-1000.0,9.164e-05,2]
[420478839,1776139028558,-1000.0,9.164e-05,2]
[420478840,1776139028871,-1000.0,9.164e-05,2]
[420478841,1776139029031,-1000.0,9.164e-05,2]
[420478842,1776139029137,-1000.0,9.164e-05,2]
[420478843,1776139029259,-1000.0,9.164e-05,2]
[420478844,1776139029562,-1000.0,9.164e-05,2]
[420478845,1776139029905,-1000.0,9.164e-05,2]
[420478846,1776139030374,-1000.0,9.164e-05,2]
[420478847,1776139031308,-1000.0,9.164e-05,2]
[420478848,1776139031597,-1000.0,9.164e-05,2]
[420478849,1776139031703,-970.0,9.164e-05,3]
[420478850,1776139031747,-30.0,9.164e-05,2]
[420478851,1776139031969,-1000.0,9.164e-05,2]
[420478852,1776139032346,-1000.0,9.164e-05,2]
[420478853,1776139032597,-1000.0,9.164e-05,2]
[420478854,1776139033361,-1000.0,9.164e-05,2]
[420478855,1776139033645,-1000.0,9.164e-05,2]
[420478856,1776139033847,-1000.0,9.164e-05,2]
[420478857,1776139033978,-1000.0,9.164e-05,2]
[420478858,1776139034465,-1000.0,9.164e-05,2]
[420478859,1776139034866,-1000.0,9.164e-05,2]
[420478860,1776139035102,-1000.0,9.164e-05,2]
[420478861,1776139035487,-1000.0,9.164e-05,2]
[420478862,1776139035821,-1000.0,9.164e-05,2]
[420478863,1776139036319,-1000.0,9.164e-05,2]
[420478864,1776139036882,-1000.0,9.164e-05,2]
[420478865,1776139037161,-1000.0,9.164e-05,2]
[420478866,1776139039841,-164.0,9.164e-05,3]
[420478867,1776139039902,-836.0,9.164e-05,2]
[420478868,1776139040021,-1000.0,9.164e-05,2]
[420478869,1776139040430,-1000.0,9.164e-05,2]
[420478870,1776139040726,-1000.0,9.164e-05,2]
[420478871,1776139040883,-1000.0,9.164e-05,2]
[420478872,1776139041062,-1000.0,9.164e-05,2]
[420478873,1776139042313,-1000.0,9.164e-05,2]
[420478874,1776139042731,-1000.0,9.164e-05,2]
[420478875,1776139043102,-1000.0,9.164e-05,2]
[420478876,1776139044531,-1000.0,9.164e-05,2]
[420478889,1776139130688,536.97518079,0.0001617,30]
[420478919,1776139137645,-300.0,9.163e-05,2]
[420478920,1776139137693,-700.0,9.164e-05,3]
[420478921,1776139138735,-273.0,9.164e-05,3]
[420478922,1776139138765,-164.0,9.164e-05,3]
[420478923,1776139138814,-563.0,9.164e-05,2]
[420478924,1776139139241,-1000.0,9.164e-05,2]
[420478925,1776139139763,-1000.0,9.164e-05,2]
[420478926,1776139140347,-1000.0,9.164e-05,2]
[420478927,1776139142203,-1000.0,9.164e-05,2]
[420478928,1776139142282,-300.0,9.163e-05,2]
[420478929,1776139142322,-700.0,9.164e-05,2]
[420478930,1776139142421,-288.59970822,9.164e-05,2]
[420478931,1776139142456,-711.40029178,9.164e-05,2]
[420478932,1776139142505,-1000.0,9.164e-05,2]
[420478933,1776139142560,-1000.0,9.164e-05,2]
[420478934,1776139143699,-1000.0,9.164e-05,2]
[420478935,1776139144075,-1000.0,9.164e-05,2]
[420478936,1776139144808,-1000.0,9.164e-05,2]
[420478937,1776139145170,-1000.0,9.164e-05,2]
[420478938,1776139145529,-1000.0,9.164e-05,2]
[420478939,1776139145884,-1000.0,9.164e-05,2]
[420478940,1776139146189,-1000.0,9.164e-05,2]
[420478941,1776139146597,-1000.0,9.164e-05,2]
[420478942,1776139146897,-1000.0,9.164e-05,2]
[420478943,1776139147291,-1000.0,9.164e-05,2]
[420478944,1776139147538,-924.0,9.164e-05,3]
[420478945,1776139147575,-76.0,9.164e-05,2]
[420478946,1776139147870,-1000.0,9.164e-05,2]
[420478947,1776139148222,-1000.0,9.164e-05,2]
[420478948,1776139148725,-1000.0,9.164e-05,2]
[420478949,1776139148968,-1000.0,9.164e-05,2]
[420478950,1776139149343,-1000.0,9.164e-05,2]
[420478951,1776139149740,-1000.0,9.164e-05,2]
[420478952,1776139149946,-1000.0,9.164e-05,2]
[420478953,1776139150242,-1000.0,9.164e-05,2]
[420478954,1776139150639,-1000.0,9.164e-05,2]
[420478955,1776139150972,-1000.0,9.164e-05,2]
[420478956,1776139151356,-1000.0,9.164e-05,2]
[420478957,1776139151731,-1000.0,9.164e-05,2]
[420478958,1776139152068,-1000.0,9.164e-05,2]
[420478959,1776139154125,-1000.0,9.164e-05,2]
[420478960,1776139154188,-1000.0,9.164e-05,2]
[420478961,1776139154294,-1000.0,9.164e-05,2]
[420478962,1776139154342,-1000.0,9.164e-05,2]
[420478963,1776139155657,-1000.0,9.164e-05,2]
[420478964,1776139155994,-1000.0,9.164e-05,2]
[420478965,1776139156405,-1000.0,9.164e-05,2]
[420478966,1776139156851,-1000.0,9.164e-05,2]
[420478967,1776139157172,-1000.0,9.164e-05,2]
[420478968,1776139157523,-1000.0,9.164e-05,2]
[420478969,1776139157982,-1000.0,9.164e-05,2]
[420478970,1776139158224,-1000.0,9.164e-05,2]
[420478971,1776139158576,-1000.0,9.164e-05,2]
[420478972,1776139158916,-1000.0,9.164e-05,2]
[420478973,1776139159324,-1000.0,9.164e-05,2]
[420478974,1776139159711,-1000.0,9.164e-05,2]
[420478975,1776139163144,1704.6719,9.064e-05,2]
[420478976,1776139169047,2492.9313,9.064e-05,2]
[420478977,1776139177595,-1000.0,9.164e-05,2]
[420478978,1776139186242,-1000.0,9.164e-05,2]
[420478979,1776139186709,-1000.0,9.164e-05,2]
[420478980,1776139188807,-1000.0,9.164e-05,2]
[420478981,1776139188895,-1000.0,9.164e-05,2]
[420478982,1776139189032,-1000.0,9.164e-05,2]
[420478983,1776139189191,-1000.0,9.164e-05,2]
[420478984,1776139189251,-1000.0,9.164e-05,2]
[420478985,1776139189673,-1000.0,9.164e-05,2]
[420478986,1776139189984,-1000.0,9.164e-05,2]
[420478987,1776139190298,-1000.0,9.164e-05,2]
[420478988,1776139190680,-1000.0,9.164e-05,2]
[420478989,1776139190946,-1000.0,9.164e-05,2]
[420478990,1776139191310,-1000.0,9.164e-05,2]
[420478991,1776139191603,-1000.0,9.164e-05,2]
[420478992,1776139191928,-1000.0,9.164e-05,2]
[420478993,1776139192265,-1000.0,9.164e-05,2]
[420478994,1776139192880,-1000.0,9.164e-05,2]
[420478995,1776139193003,-1000.0,9.164e-05,2]
[420478996,1776139193273,-1000.0,9.164e-05,2]
[420478997,1776139193580,-1000.0,9.164e-05,2]
[420478998,1776139193943,-1000.0,9.164e-05,2]
[420478999,1776139194325,-1000.0,9.164e-05,2]
[420479000,1776139194650,-1000.0,9.164e-05,2]
[420479001,1776139195152,-1000.0,9.164e-05,2]
[420479002,1776139195339,-1000.0,9.164e-05,2]
[420479003,1776139195699,-1000.0,9.164e-05,2]
[420479004,1776139196111,-1000.0,9.164e-05,2]
[420479005,1776139196421,-1000.0,9.164e-05,2]
[420479006,1776139196703,-1000.0,9.164e-05,2]
[420479007,1776139197042,-1000.0,9.164e-05,2]
[420479008,1776139197444,-1000.0,9.164e-05,2]
[420479009,1776139197697,-1000.0,9.164e-05,2]
[420479010,1776139197996,-1000.0,9.164e-05,2]
[420479011,1776139198391,-1000.0,9.164e-05,2]
[420479012,1776139200336,-1000.0,9.164e-05,2]
[420479013,1776139200441,-1000.0,9.164e-05,2]
[420479014,1776139200573,-1000.0,9.164e-05,2]
[420479015,1776139200633,-1000.0,9.164e-05,2]
[420479016,1776139200832,-1000.0,9.164e-05,2]
[420479017,1776139203471,-1000.0,9.163e-05,2]
[420479018,1776139203770,-200.0,9.163e-05,2]
[420479019,1776139203795,-150.0,9.163e-05,2]
[420479020,1776139203826,-468.55102849,9.164e-05,2]
[420479021,1776139203861,-181.44897151,9.164e-05,2]
[420479022,1776139204343,-1000.0,9.164e-05,2]
[420479023,1776139204708,-1000.0,9.164e-05,2]
[420479024,1776139205081,-1000.0,9.164e-05,2]
[420479025,1776139208681,-151.0,9.164e-05,3]
[420479026,1776139208723,-849.0,9.164e-05,3]
[420479027,1776139209618,-500.0,9.163e-05,2]
[420479028,1776139209669,-334.16698253,9.163e-05,2]
[420479029,1776139209735,-29.0,9.164e-05,3]
[420479030,1776139209803,-136.83301747,9.164e-05,2]
[420479031,1776139209957,200.0,9.122e-05,2]
[420479032,1776139212115,-1000.0,9.164e-05,2]
[420479033,1776139213332,-1000.0,9.164e-05,2]
[420479034,1776139214992,-1000.0,9.164e-05,2]
[420479035,1776139223889,248.9,9.106e-05,2]
[420479045,1776139281055,-500.0,9.163e-05,2]
[420479046,1776139281116,-500.0,9.163e-05,2]
[420479047,1776139282139,-500.0,9.163e-05,2]
[420479048,1776139282187,-500.0,9.163e-05,2]
[420479049,1776139282523,-500.0,9.163e-05,2]
[420479050,1776139282574,-500.0,9.163e-05,2]
[420479051,1776139282815,-38.31404874,9.163e-05,2]
[420479052,1776139282848,-500.0,9.163e-05,2]
[420479053,1776139282884,-251.92703292,9.163e-05,2]
[420479054,1776139282931,-156.0,9.164e-05,3]
[420479055,1776139282984,-53.75891834,9.164e-05,3]
[420479056,1776139283190,-780.24108166,9.164e-05,3]
[420479057,1776139283216,-164.0,9.164e-05,3]
[420479058,1776139283258,-55.75891834,9.164e-05,2]
[420479059,1776139283531,-1000.0,9.164e-05,2]
[420479060,1776139283938,-1000.0,9.164e-05,2]
[420479061,1776139284186,-1000.0,9.164e-05,2]
[420479062,1776139284743,-1000.0,9.164e-05,2]
[420479063,1776139285054,-1000.0,9.164e-05,2]
[420479064,1776139285388,-1000.0,9.164e-05,2]
[420479065,1776139285637,-1000.0,9.164e-05,2]
[420479066,1776139285951,-1000.0,9.164e-05,2]
[420479067,1776139286494,-1000.0,9.164e-05,2]
[420479068,1776139286838,-1000.0,9.164e-05,2]
[420479069,1776139287147,-1000.0,9.164e-05,2]
[420479070,1776139287463,-1000.0,9.164e-05,2]
[420479071,1776139287768,-1000.0,9.164e-05,2]
[420479072,1776139288116,-1000.0,9.164e-05,2]
[420479073,1776139288481,-1000.0,9.164e-05,2]
[420479074,1776139288790,-1000.0,9.164e-05,2]
[420479075,1776139289172,-1000.0,9.164e-05,2]
[420479076,1776139289436,-1000.0,9.164e-05,2]
[420479077,1776139289883,-1000.0,9.164e-05,2]
[420479078,1776139290086,-1000.0,9.164e-05,2]
[420479079,1776139290469,-1000.0,9.164e-05,2]
[420479080,1776139290774,-1000.0,9.164e-05,2]
[420479081,1776139292316,-1000.0,9.164e-05,2]
[420479082,1776139292559,-1000.0,9.164e-05,2]
[420479083,1776139292653,-1000.0,9.164e-05,2]
[420479084,1776139292731,-1000.0,9.164e-05,2]
[420479085,1776139292805,-1000.0,9.164e-05,2]
[420479086,1776139292991,-1000.0,9.164e-05,2]
[420479087,1776139293151,-1000.0,9.164e-05,2]
[420479088,1776139293487,-1000.0,9.164e-05,2]
[420479089,1776139293965,-1000.0,9.164e-05,2]
[420479090,1776139294610,-1000.0,9.164e-05,2]
[420479091,1776139294872,-1000.0,9.164e-05,2]
[420479092,1776139294984,-1000.0,9.164e-05,2]
[420479094,1776139295444,-1000.0,9.164e-05,2]
[420479095,1776139295970,-1000.0,9.164e-05,2]
[420479096,1776139296211,-1000.0,9.164e-05,2]
[420479097,1776139298122,-1000.0,9.164e-05,2]
[420479098,1776139298261,-1000.0,9.164e-05,2]
[420479099,1776139298328,-1000.0,9.164e-05,2]
[420479100,1776139298415,-1000.0,9.164e-05,2]
[420479101,1776139298568,-1000.0,9.164e-05,2]
[420479102,1776139298648,-1000.0,9.164e-05,2]
[420479103,1776139300576,-1000.0,9.164e-05,2]